bitfinex-derivatives/quotes_BNBF0:USTF0_20251027
["timestamp","ask_amount","ask_price","bid_price","bid_amount"]
[1761533276945,0.15034638,1159.7,1156.8,0.196]
[1761533277145,0.15034638,1159.7,1156.9,0.58034771]
[1761533277347,0.15034638,1159.7,1156.8,0.196]
[1761533280747,0.15034638,1159.7,1156.4,1.26]
[1761533281048,0.15034638,1159.7,1156.5,0.58085838]
[1761533281345,0.15034638,1159.7,1156.6,0.58085838]
[1761533281550,0.15034638,1159.7,1156.7,0.58085838]
[1761533281746,0.15034638,1159.7,1156.4,1.26]
[1761533281951,0.15034638,1159.7,1156.5,0.58083058]
[1761533282147,0.15034638,1159.7,1156.4,1.26]
[1761533282148,0.15034638,1159.7,1156.6,0.58083058]
[1761533282347,0.15034638,1159.7,1156.7,0.58083058]
[1761533282552,0.15034638,1159.7,1156.4,1.26]
[1761533282750,0.15034638,1159.7,1156.5,0.58097626]
[1761533283051,0.15034638,1159.7,1156.6,0.58097626]
[1761533283250,0.15034638,1159.7,1156.7,0.58097626]
[1761533283453,0.15034638,1159.7,1156.8,0.195]
[1761533284850,0.15034638,1159.7,1156.9,1.227]
[1761533291656,2.1448393,1159.2,1156.9,1.227]
[1761533292353,2.1448393,1159.3,1156.9,1.227]
[1761533293258,2.1448393,1159.2,1156.9,1.227]
[1761533293753,2.1448393,1159.2,1157.0,1.471]
[1761533294256,2.1448393,1159.1,1157.0,1.471]
[1761533294853,2.1448393,1159.0,1157.0,1.471]
[1761533296861,2.1448393,1159.2,1157.0,1.471]
[1761533298861,2.1448393,1159.3,1157.0,1.471]
[1761533300066,2.1448393,1159.2,1157.0,1.471]
[1761533300563,2.1448393,1159.1,1157.0,1.471]
[1761533300968,3.15312138,1159.7,1157.0,1.471]
[1761533301465,0.15034638,1159.7,1157.0,1.471]
[1761533302467,2.1448393,1159.2,1157.0,1.471]
[1761533307170,2.1448393,1159.0,1157.0,1.471]
[1761533307773,2.1448393,1158.2,1157.0,1.471]
[1761533308173,3.002775,1158.5,1157.0,1.471]
[1761533308878,4.2896786,1159.1,1157.0,1.471]
[1761533309876,0.15034638,1159.7,1157.0,1.471]
[1761533310078,0.15034638,1159.7,1157.1,0.194]
[1761533315080,2.1448393,1159.1,1157.1,0.194]
[1761533315384,2.1448393,1159.2,1157.1,0.194]
[1761533315984,2.1448393,1158.9,1157.1,0.194]
[1761533316384,2.1448393,1158.4,1157.1,0.194]
[1761533318088,2.1448393,1158.1,1157.1,0.194]
[1761533319094,3.002775,1158.5,1157.1,0.194]
[1761533319095,2.1448393,1158.2,1157.1,0.194]
[1761533319593,3.002775,1158.7,1157.1,0.194]
[1761533320189,2.1448393,1158.8,1157.1,0.194]
[1761533322695,2.1448393,1159.0,1157.1,0.194]
[1761533323793,2.1448393,1159.2,1157.1,0.194]
[1761533325797,2.1448393,1159.4,1157.1,0.194]
[1761533326197,2.1448393,1159.4,1157.0,1.471]
[1761533327498,2.1448393,1159.0,1157.0,1.471]
[1761533327994,2.1448393,1159.1,1157.0,1.471]
[1761533328399,3.002775,1159.6,1157.0,1.471]
[1761533328599,0.15034638,1159.7,1157.0,1.471]
[1761533329100,0.15034638,1159.7,1157.1,0.194]
[1761533336298,2.29518568,1159.7,1157.1,0.194]
[1761533337002,2.1448393,1159.6,1157.1,0.194]
[1761533337297,2.1448393,1159.5,1157.1,0.194]
[1761533337905,2.1448393,1159.5,1157.1,1.388]
[1761533339503,2.29518568,1159.7,1157.1,1.388]
[1761533341007,2.1448393,1159.6,1157.1,1.388]
[1761533341505,2.1448393,1159.4,1157.1,1.388]
[1761533344708,2.1448393,1159.3,1157.1,1.388]
[1761533345704,2.1448393,1159.2,1157.1,1.388]
[1761533348307,3.002775,1158.9,1157.1,1.388]
[1761533348705,2.1448393,1158.4,1157.1,1.388]
[1761533349208,2.1448393,1158.2,1157.1,1.388]
[1761533350206,2.1448393,1158.1,1157.1,1.388]
[1761533352009,3.002775,1158.6,1157.1,1.388]
[1761533352512,4.2896786,1159.3,1157.1,1.388]
[1761533353010,6.4345179,1159.3,1156.7,1.446]
[1761533353310,2.1448393,1157.7,1156.7,1.446]
[1761533357014,3.002775,1158.1,1156.7,1.446]
[1761533357615,2.1448393,1158.3,1156.7,1.446]
[1761533359013,2.1448393,1158.4,1156.7,1.446]
[1761533360618,2.1448393,1158.6,1156.7,1.446]
[1761533362717,2.1448393,1158.3,1156.7,1.446]
[1761533364822,2.1448393,1158.5,1156.7,1.446]
[1761533366321,2.1448393,1158.6,1156.7,1.446]
[1761533366818,5.1476143,1159.0,1156.7,1.446]
[1761533367017,2.1448393,1159.0,1156.7,1.446]
[1761533367518,3.15312138,1159.7,1156.7,1.446]
[1761533367918,0.15034638,1159.7,1156.7,1.446]
[1761533372230,2.1448393,1159.5,1156.7,1.446]
[1761533374234,2.1448393,1159.0,1156.7,1.446]
[1761533374635,2.1448393,1158.8,1156.7,1.446]
[1761533376237,2.1448393,1158.7,1156.7,1.446]
[1761533377834,2.1448393,1158.8,1156.7,1.446]
[1761533381938,2.1448393,1159.0,1156.7,1.446]
[1761533385642,2.1448393,1159.1,1156.7,1.446]
[1761533388745,2.1448393,1158.9,1156.7,1.446]
[1761533389842,2.1448393,1158.5,1156.7,1.446]
[1761533390742,2.1448393,1158.7,1156.7,1.446]
[1761533391843,2.1448393,1158.8,1156.7,1.446]
[1761533393653,2.1448393,1158.9,1156.7,1.446]
[1761533395650,2.1448393,1158.6,1156.7,1.446]
[1761533397848,3.002775,1159.2,1156.7,1.446]
[1761533397849,2.1448393,1158.3,1156.7,1.446]
[1761533398250,2.1448393,1158.0,1156.7,1.446]
[1761533398651,2.1448393,1158.1,1156.7,1.446]
[1761533399256,0.15034638,1159.7,1156.7,1.446]
[1761533401354,2.29518568,1159.7,1156.7,1.446]
[1761533402052,0.15034638,1159.7,1156.7,1.446]
[1761533402454,2.1448393,1159.5,1156.7,1.446]
[1761533403457,2.1448393,1159.2,1156.7,1.446]
[1761533404458,2.1448393,1159.0,1156.7,1.446]
[1761533404754,2.1448393,1157.6,1156.7,1.446]
[1761533405257,2.1448393,1158.3,1156.7,1.446]
[1761533406258,2.1448393,1158.1,1156.7,1.446]
[1761533406859,2.1448393,1158.4,1156.7,1.446]
[1761533407861,2.1448393,1158.5,1156.7,1.446]
[1761533409461,2.1448393,1158.2,1156.7,1.446]
[1761533410461,5.1476143,1158.8,1156.7,1.446]
[1761533410657,2.1448393,1158.8,1156.7,1.446]
[1761533411162,2.1448393,1158.8,1156.7,2.631]
[1761533412262,2.1448393,1158.8,1156.7,1.185]
[1761533414859,2.1448393,1159.0,1156.7,1.185]
[1761533415259,2.1448393,1158.7,1156.7,1.185]
[1761533415763,2.1448393,1158.8,1156.7,1.185]
[1761533415964,3.002775,1158.6,1156.7,1.185]
[1761533416360,2.1448393,1158.1,1156.7,1.185]
[1761533416862,2.1448393,1158.2,1156.7,1.185]
[1761533417265,2.1448393,1157.7,1156.7,1.185]
[1761533417763,2.1448393,1157.8,1156.7,1.185]
[1761533418972,2.1448393,1157.6,1156.7,1.185]
[1761533419974,2.1448393,1157.5,1156.7,1.185]
[1761533420671,2.1448393,1157.5,1156.7,0.26662227]
[1761533420872,2.1448393,1157.3,1156.7,0.26662227]
[1761533423278,2.1448393,1157.5,1156.5,1.623]
[1761533426177,2.1448393,1157.7,1156.5,1.623]
[1761533426680,2.1448393,1157.8,1156.5,1.623]
[1761533428181,2.1448393,1157.9,1156.5,1.623]
[1761533428677,2.1448393,1159.3,1156.5,1.623]
[1761533430486,3.002775,1157.9,1156.5,1.623]
[1761533430785,2.1448393,1157.6,1156.5,1.623]
[1761533432388,2.1448393,1157.7,1156.5,1.623]
[1761533434389,2.1448393,1157.8,1156.5,1.623]
[1761533436585,5.1476143,1158.2,1156.5,1.623]
[1761533436886,2.1448393,1158.2,1156.5,1.623]
[1761533437085,2.1448393,1158.1,1156.5,1.623]
[1761533437485,2.1448393,1158.5,1156.5,1.623]
[1761533438089,2.1448393,1158.2,1156.5,1.623]
[1761533438690,2.1448393,1157.5,1156.5,1.623]
[1761533440489,5.1476143,1157.9,1156.5,1.623]
[1761533440889,2.1448393,1157.9,1156.5,1.623]
[1761533441093,2.1448393,1158.3,1156.5,1.623]
[1761533441590,2.1448393,1158.4,1156.5,1.623]
[1761533442193,2.1448393,1158.3,1156.5,1.623]
[1761533444893,3.002775,1158.9,1156.5,1.623]
[1761533444894,2.1448393,1157.9,1156.5,1.623]
[1761533445292,3.002775,1158.3,1156.5,1.623]
[1761533446094,2.1448393,1158.6,1156.5,1.623]
[1761533446494,2.1448393,1158.4,1156.5,1.623]
[1761533447095,2.1448393,1158.5,1156.5,1.623]
[1761533448102,2.1448393,1158.0,1156.5,1.623]
[1761533448499,3.002775,1158.3,1156.5,1.623]
[1761533449102,2.1448393,1158.4,1156.5,1.623]
[1761533450305,2.1448393,1158.4,1156.6,0.737]
[1761533450601,2.1448393,1158.6,1156.6,0.737]
[1761533451605,3.002775,1159.5,1156.6,0.737]
[1761533451606,2.1448393,1158.9,1156.6,0.737]
[1761533453801,2.1448393,1158.8,1156.6,0.737]
[1761533454503,2.1448393,1158.7,1156.6,0.737]
[1761533455906,2.1448393,1158.8,1156.6,0.737]
[1761533456507,2.1448393,1159.0,1156.6,0.737]
[1761533457909,2.1448393,1158.9,1156.6,0.737]
[1761533458609,2.1448393,1159.0,1156.6,0.737]
[1761533458805,2.1448393,1159.0,1156.7,1.223]
[1761533459607,2.1448393,1158.9,1156.7,1.223]
[1761533460011,2.1448393,1158.2,1156.7,1.223]
[1761533462112,0.15043997,1158.4,1156.7,1.223]
[1761533474730,0.15043997,1158.4,1156.6,0.737]
[1761533477334,0.15043997,1158.4,1156.7,1.117]
[1761533493042,2.1448393,1158.3,1156.7,1.117]
[1761533493546,0.15043997,1158.4,1156.7,1.117]
[1761533499249,2.1448393,1158.2,1156.7,1.117]
[1761533500757,2.29527927,1158.4,1156.7,1.117]
[1761533502458,0.15043997,1158.4,1156.7,1.117]
[1761533511163,0.15043997,1158.4,1156.8,0.731]
[1761533511662,2.1448393,1158.0,1156.8,0.731]
[1761533512364,2.1448393,1158.3,1156.8,0.731]
[1761533513262,2.29527927,1158.4,1156.8,0.731]
[1761533514864,0.15043997,1158.4,1156.8,0.731]
[1761533515367,2.1448393,1158.1,1156.8,0.731]
[1761533516866,5.1476143,1158.1,1156.8,0.731]
[1761533517167,2.1448393,1157.7,1156.8,0.731]
[1761533517563,0.15043997,1158.4,1156.8,0.731]
[1761533526074,2.1448393,1158.1,1156.8,0.731]
[1761533527274,2.29527927,1158.4,1156.8,0.731]
[1761533528785,2.1448393,1158.3,1156.8,0.731]
[1761533531384,0.15043997,1158.4,1156.8,0.731]
[1761533531786,2.1448393,1158.2,1156.8,0.731]
[1761533533189,0.15043997,1158.4,1156.8,0.731]
[1761533539792,2.1448393,1158.0,1156.8,0.731]
[1761533541387,2.1448393,1158.3,1156.8,0.731]
[1761533541988,2.1448393,1158.2,1156.8,0.731]
[1761533542391,2.1448393,1158.3,1156.8,0.731]
[1761533543092,2.1448393,1158.2,1156.8,0.731]
[1761533544090,2.1448393,1157.9,1156.8,0.731]
[1761533544494,2.1448393,1157.8,1156.8,0.731]
[1761533545195,2.1448393,1157.8,1156.8,0.16997483]
[1761533545696,2.1448393,1157.6,1156.8,0.16997483]
[1761533546193,2.1448393,1157.7,1156.8,0.16997483]
[1761533547092,2.1448393,1158.1,1156.8,0.16997483]
[1761533548296,2.1448393,1158.2,1156.8,0.16997483]
[1761533548596,2.29527927,1158.4,1156.8,0.16997483]
[1761533551200,0.15043997,1158.4,1156.8,0.16997483]
[1761533553200,0.15043997,1158.4,1156.5,1.183]
[1761533555199,0.15043997,1158.4,1155.2,0.64550154]
[1761533555405,0.15043997,1158.4,1155.3,0.58029409]
[1761533555703,0.15043997,1158.4,1155.4,0.58029409]
[1761533555905,0.15043997,1158.4,1155.5,0.58029409]
[1761533556204,0.15043997,1158.4,1155.6,0.58029409]
[1761533556402,2.1448393,1158.1,1155.7,0.58029409]
[1761533556602,2.1448393,1158.1,1155.2,0.64550154]
[1761533556801,2.1448393,1158.1,1155.3,0.58032422]
[1761533557006,2.1448393,1158.1,1155.4,0.58032422]
[1761533557302,2.1448393,1158.1,1155.5,0.58032422]
[1761533557506,2.1448393,1158.1,1155.6,0.58032422]
[1761533557705,2.1448393,1158.1,1155.7,0.58032422]
[1761533557904,2.1448393,1158.1,1155.2,0.64550154]
[1761533558105,2.1448393,1158.1,1155.3,1.87231405]
[1761533558309,2.1448393,1158.1,1155.4,0.58031405]
[1761533558507,2.1448393,1158.1,1155.5,0.74231405]
[1761533558705,2.1448393,1158.1,1155.6,0.58031405]
[1761533558903,2.1448393,1158.1,1155.7,0.58031405]
[1761533559103,2.29527927,1158.4,1155.5,0.162]
[1761533559307,2.29527927,1158.4,1155.6,0.58030423]
[1761533559504,2.29527927,1158.4,1155.7,0.58030423]
[1761533559708,2.29527927,1158.4,1155.5,0.162]
[1761533559909,2.29527927,1158.4,1155.6,0.58030423]
[1761533560203,2.1448393,1158.2,1155.7,0.58030423]
[1761533560404,2.1448393,1158.2,1155.5,0.162]
[1761533560604,2.1448393,1158.2,1155.6,0.58030417]
[1761533560803,2.1448393,1158.2,1155.7,0.58030417]
[1761533561004,2.1448393,1158.2,1155.5,0.162]
[1761533561205,2.1448393,1158.1,1155.6,0.58030417]
[1761533561406,2.1448393,1158.1,1155.7,0.58030417]
[1761533561608,2.1448393,1158.1,1155.5,0.162]
[1761533561809,2.1448393,1158.1,1155.6,0.58030772]
[1761533562010,2.1448393,1158.1,1155.7,0.58030772]
[1761533562208,2.1448393,1158.1,1155.5,0.162]
[1761533562407,2.1448393,1158.1,1155.6,0.58031385]
[1761533562609,2.1448393,1158.1,1155.7,0.58031385]
[1761533562905,2.1448393,1158.1,1155.5,0.162]
[1761533563107,2.1448393,1158.1,1155.6,0.58030738]
[1761533563306,2.1448393,1158.1,1155.7,0.58030738]
[1761533563608,2.1448393,1158.1,1155.5,0.162]
[1761533563808,2.1448393,1158.1,1155.6,0.58032185]
[1761533564010,0.15043997,1158.4,1155.7,0.58032185]
[1761533564209,0.15043997,1158.4,1155.8,0.58032185]
[1761533564412,3.002775,1158.1,1155.9,0.58032185]
[1761533564608,3.002775,1158.1,1156.0,0.58032185]
[1761533564814,3.002775,1158.1,1155.5,0.80750154]
[1761533565109,3.002775,1158.1,1155.6,0.58024237]
[1761533565309,3.002775,1158.1,1155.7,0.58024237]
[1761533565509,2.1448393,1158.2,1155.8,0.58024237]
[1761533565714,2.1448393,1158.2,1155.9,0.58024237]
[1761533566014,2.1448393,1158.2,1156.0,0.58024237]
[1761533566212,2.29527927,1158.4,1156.1,0.58024237]
[1761533566411,2.29527927,1158.4,1156.2,0.58024237]
[1761533566616,2.29527927,1158.4,1155.7,0.64550154]
[1761533566913,2.29527927,1158.4,1155.8,0.5802224]
[1761533567116,2.29527927,1158.4,1155.9,0.5802224]
[1761533567312,2.29527927,1158.4,1156.0,0.5802224]
[1761533567616,2.29527927,1158.4,1156.1,0.5802224]
[1761533567813,2.29527927,1158.4,1156.2,0.5802224]
[1761533567814,0.15043997,1158.4,1156.2,0.5802224]
[1761533568011,0.15043997,1158.4,1155.7,0.64550154]
[1761533568216,0.15043997,1158.4,1155.8,0.58022187]
[1761533568416,0.15043997,1158.4,1155.9,0.58022187]
[1761533568617,0.15043997,1158.4,1156.0,0.58022187]
[1761533568914,0.15043997,1158.4,1156.1,0.58022187]
[1761533569114,0.15043997,1158.4,1156.2,0.58022187]
[1761533569416,0.15043997,1158.4,1155.7,0.64550154]
[1761533569614,0.15043997,1158.4,1155.8,0.58023773]
[1761533569814,0.15043997,1158.4,1155.9,0.58023773]
[1761533570014,0.15043997,1158.4,1156.0,0.58023773]
[1761533570212,0.15043997,1158.4,1156.1,0.58023773]
[1761533570416,0.15043997,1158.4,1156.2,0.58023773]
[1761533570712,0.15043997,1158.4,1155.7,0.64550154]
[1761533570914,0.15043997,1158.4,1155.8,0.58024803]
[1761533571114,0.15043997,1158.4,1155.9,0.58024803]
[1761533571317,0.15043997,1158.4,1156.0,0.58024803]
[1761533571617,0.15043997,1158.4,1156.1,0.58024803]
[1761533571813,0.15043997,1158.4,1156.2,0.58024803]
[1761533572017,0.15043997,1158.4,1155.7,0.64550154]
[1761533572217,0.15043997,1158.4,1155.8,0.5802521]
[1761533572415,0.15043997,1158.4,1155.9,0.5802521]
[1761533572617,0.15043997,1158.4,1156.0,0.5802521]
[1761533572817,0.15043997,1158.4,1156.1,0.5802521]
[1761533573014,2.1448393,1158.0,1155.7,0.64550154]
[1761533573219,2.1448393,1158.0,1155.8,0.5802745]
[1761533573418,2.1448393,1158.0,1155.9,0.5802745]
[1761533573615,2.1448393,1158.0,1156.0,0.5802745]
[1761533573815,2.1448393,1158.0,1156.1,0.5802745]
[1761533574016,2.1448393,1158.0,1155.7,0.64550154]
[1761533574217,2.1448393,1158.0,1155.8,0.58028374]
[1761533574419,2.1448393,1158.0,1155.9,0.58028374]
[1761533574620,2.1448393,1158.0,1156.0,0.58028374]
[1761533574917,2.1448393,1158.0,1156.1,0.58028374]
[1761533575114,2.1448393,1158.0,1155.7,0.64550154]
[1761533575320,2.1448393,1158.0,1155.8,0.58029274]
[1761533575617,2.1448393,1158.1,1155.9,0.58029274]
[1761533575817,2.1448393,1158.1,1156.0,0.58029274]
[1761533576016,2.1448393,1158.1,1155.6,0.64550154]
[1761533576222,2.1448393,1158.0,1155.7,0.58029274]
[1761533576421,2.1448393,1158.0,1155.8,0.58029274]
[1761533576621,2.1448393,1157.9,1155.9,0.58029274]
[1761533576816,2.1448393,1157.9,1156.0,0.58029274]
[1761533577019,2.1448393,1157.9,1155.6,0.64550154]
[1761533577217,2.1448393,1158.0,1155.7,0.58029112]
[1761533577421,2.1448393,1158.0,1155.8,0.58029112]
[1761533577720,2.1448393,1157.9,1155.9,0.58029112]
[1761533577921,2.1448393,1157.9,1156.0,0.58029112]
[1761533578121,2.1448393,1157.9,1155.6,0.64550154]
[1761533578321,2.1448393,1157.9,1155.7,0.58032866]
[1761533578524,2.1448393,1157.9,1155.8,0.58032866]
[1761533578820,2.1448393,1157.9,1155.9,0.58032866]
[1761533579023,2.1448393,1157.9,1156.0,0.58032866]
[1761533579221,2.1448393,1157.9,1155.6,0.64550154]
[1761533579420,2.1448393,1157.9,1155.7,1.22586551]
[1761533579724,2.1448393,1157.8,1155.8,0.58036397]
[1761533579925,2.1448393,1157.8,1155.9,0.58036397]
[1761533580124,2.1448393,1157.8,1156.0,0.58036397]
[1761533580322,2.1448393,1157.8,1155.6,0.64550154]
[1761533580622,2.1448393,1157.8,1155.7,0.58038494]
[1761533580921,2.1448393,1157.7,1155.8,0.58038494]
[1761533581221,2.1448393,1157.7,1155.9,0.58038494]
[1761533581525,2.1448393,1157.7,1156.0,0.58042581]
[1761533581723,2.1448393,1157.7,1155.6,0.64550154]
[1761533581922,2.1448393,1157.7,1155.7,0.58043669]
[1761533582123,2.1448393,1157.7,1155.8,0.58043669]
[1761533582322,2.1448393,1157.7,1155.9,0.58043669]
[1761533582521,2.1448393,1157.7,1155.6,0.64550154]
[1761533582726,2.1448393,1157.7,1155.7,0.58047949]
[1761533582922,5.1476143,1158.0,1155.8,0.58047949]
[1761533583126,2.1448393,1158.0,1155.9,0.58047949]
[1761533583326,2.1448393,1158.0,1156.0,0.58047949]
[1761533583525,2.1448393,1158.0,1155.6,0.64550154]
[1761533583721,2.1448393,1158.0,1155.7,0.58052543]
[1761533583922,2.1448393,1158.0,1155.8,0.58052543]
[1761533584121,2.1448393,1158.0,1155.9,0.58052543]
[1761533584425,2.1448393,1158.0,1156.0,0.58052543]
[1761533584621,2.1448393,1158.0,1155.6,0.64550154]
[1761533584826,2.1448393,1158.0,1155.7,0.58056627]
[1761533585027,2.1448393,1158.0,1155.8,0.58056627]
[1761533585324,2.1448393,1158.0,1155.9,0.58056627]
[1761533585623,2.1448393,1158.0,1156.0,0.58056627]
[1761533585827,2.1448393,1158.0,1155.6,0.64550154]
[1761533586023,2.1448393,1158.0,1155.7,0.58060849]
[1761533586228,2.1448393,1158.0,1155.8,0.58060849]
[1761533586426,2.1448393,1158.0,1155.5,0.162]
[1761533586427,2.1448393,1158.0,1155.9,0.58060849]
[1761533586629,0.15043997,1158.4,1156.0,0.58060849]
[1761533586829,0.15043997,1158.4,1155.5,0.162]
[1761533587029,0.15043997,1158.4,1155.6,0.5806213]
[1761533587229,0.15043997,1158.4,1155.7,0.5806213]
[1761533587427,0.15043997,1158.4,1155.8,0.5806213]
[1761533587632,0.15043997,1158.4,1155.9,0.5806213]
[1761533587832,0.15043997,1158.4,1156.0,0.5806213]
[1761533588034,0.15043997,1158.4,1155.5,0.162]
[1761533588228,0.15043997,1158.4,1155.6,0.58063452]
[1761533588432,0.15043997,1158.4,1155.7,0.58063452]
[1761533588633,0.15043997,1158.4,1155.8,0.58063452]
[1761533588832,0.15043997,1158.4,1155.9,0.58063452]
[1761533589033,0.15043997,1158.4,1156.0,0.58063452]
[1761533589333,0.15043997,1158.4,1155.5,0.162]
[1761533589530,0.15043997,1158.4,1155.6,0.58063578]
[1761533589731,0.15043997,1158.4,1155.7,0.58063578]
[1761533589934,0.15043997,1158.4,1155.8,0.58063578]
[1761533590132,0.15043997,1158.4,1155.9,0.58063578]
[1761533590331,0.15043997,1158.4,1156.0,0.58063578]
[1761533590634,0.15043997,1158.4,1155.5,0.162]
[1761533590933,0.15043997,1158.4,1155.6,0.58063591]
[1761533591132,0.15043997,1158.4,1155.7,0.58063591]
[1761533591330,0.15043997,1158.4,1155.8,0.58063591]
[1761533591532,0.15043997,1158.4,1155.9,0.58063591]
[1761533591730,0.15043997,1158.4,1156.0,0.58063591]
[1761533591935,0.15043997,1158.4,1155.5,0.162]
[1761533592134,0.15043997,1158.4,1155.6,0.58063594]
[1761533592336,0.15043997,1158.4,1155.7,0.58063594]
[1761533592534,0.15043997,1158.4,1155.8,0.58063594]
[1761533592735,0.15043997,1158.4,1155.9,0.58063594]
[1761533592935,0.15043997,1158.4,1156.0,0.58063594]
[1761533593134,0.15043997,1158.4,1155.5,0.162]
[1761533593431,0.15043997,1158.4,1155.6,0.58066633]
[1761533593632,0.15043997,1158.4,1155.7,0.58066633]
[1761533593831,0.15043997,1158.4,1155.8,0.58066633]
[1761533594036,0.15043997,1158.4,1155.9,0.58066633]
[1761533594233,0.15043997,1158.4,1156.0,0.58066633]
[1761533594434,0.15043997,1158.4,1155.5,0.162]
[1761533594633,0.15043997,1158.4,1155.6,0.58068299]
[1761533594838,2.29527927,1158.4,1155.7,0.58068299]
[1761533595036,2.29527927,1158.4,1155.8,0.58068299]
[1761533595338,2.29527927,1158.4,1155.9,0.58068299]
[1761533595538,2.29527927,1158.4,1155.5,0.162]
[1761533595835,2.29527927,1158.4,1155.6,0.58067572]
[1761533596039,2.29527927,1158.4,1155.7,0.58067572]
[1761533596334,2.1448393,1158.3,1155.8,0.58067572]
[1761533596537,2.1448393,1158.3,1155.5,0.162]
[1761533596538,2.1448393,1158.3,1155.9,0.58067572]
[1761533596741,2.1448393,1158.3,1155.5,0.162]
[1761533597040,2.1448393,1158.3,1155.6,0.5805093]
[1761533597337,2.1448393,1158.2,1155.7,0.5805093]
[1761533597537,2.1448393,1158.2,1155.8,0.5805093]
[1761533597742,2.1448393,1158.2,1155.9,0.5805093]
[1761533598044,2.1448393,1157.8,1155.5,0.162]
[1761533598343,2.1448393,1157.8,1155.6,0.58052327]
[1761533598543,2.1448393,1157.5,1155.7,0.58052327]
[1761533598743,2.1448393,1157.5,1155.5,0.162]
[1761533598943,2.1448393,1157.5,1155.6,0.58051346]
[1761533599242,2.1448393,1157.5,1155.7,0.58051346]
[1761533599440,2.1448393,1157.5,1155.5,0.162]
[1761533599639,2.1448393,1157.5,1155.6,0.58041114]
[1761533599840,2.1448393,1157.5,1155.5,0.162]
[1761533599841,2.1448393,1157.5,1155.7,0.58041114]
[1761533600142,2.1448393,1157.5,1155.5,0.162]
[1761533600340,2.1448393,1157.5,1155.6,0.58032572]
[1761533600545,3.002775,1157.9,1155.7,0.58032572]
[1761533600744,3.002775,1157.9,1155.5,0.162]
[1761533600944,2.1448393,1158.1,1155.6,0.58032572]
[1761533601144,2.1448393,1158.2,1155.7,0.58032572]
[1761533601345,2.1448393,1158.2,1155.5,0.162]
[1761533601543,2.1448393,1158.2,1155.6,0.58024589]
[1761533601742,2.1448393,1158.2,1155.7,0.58024589]
[1761533602044,2.1448393,1158.2,1155.5,0.162]
[1761533602246,2.1448393,1158.2,1155.6,0.58024589]
[1761533602545,2.1448393,1158.3,1155.7,0.58024589]
[1761533602746,2.1448393,1158.3,1155.5,0.162]
[1761533602941,2.1448393,1158.3,1155.6,0.58017481]
[1761533603145,2.1448393,1158.2,1155.7,0.58017481]
[1761533603345,2.1448393,1158.2,1155.5,0.162]
[1761533603542,2.1448393,1158.2,1155.6,0.58013774]
[1761533603740,2.1448393,1158.2,1155.7,0.58013774]
[1761533603943,2.1448393,1158.2,1155.5,0.162]
[1761533604146,2.1448393,1158.2,1155.6,0.58013774]
[1761533604344,2.1448393,1158.2,1155.7,0.58013774]
[1761533604547,2.1448393,1158.2,1155.5,0.162]
[1761533604748,2.1448393,1158.3,1155.6,0.58007479]
[1761533604945,2.1448393,1158.3,1155.7,0.58007479]
[1761533605150,0.15043997,1158.4,1155.5,0.162]
[1761533605445,0.15043997,1158.4,1155.6,0.58000875]
[1761533605748,0.15043997,1158.4,1155.7,0.58000875]
[1761533605948,0.15043997,1158.4,1155.5,0.162]
[1761533606144,0.15043997,1158.4,1155.6,0.5800079]
[1761533606347,0.15043997,1158.4,1155.7,0.5800079]
[1761533606544,0.15043997,1158.4,1155.5,0.162]
[1761533606743,0.15043997,1158.4,1155.6,0.57994204]
[1761533606946,0.15043997,1158.4,1155.7,0.57994204]
[1761533607146,0.15043997,1158.4,1155.5,0.162]
[1761533607345,0.15043997,1158.4,1155.6,0.5798804]
[1761533607649,0.15043997,1158.4,1155.7,0.5798804]
[1761533607845,0.15043997,1158.4,1155.5,0.162]
[1761533608046,0.15043997,1158.4,1155.6,0.5798803]
[1761533608249,0.15043997,1158.4,1155.7,0.5798803]
[1761533608449,0.15043997,1158.4,1155.8,0.5798803]
[1761533608649,0.15043997,1158.4,1155.5,0.162]
[1761533608844,0.15043997,1158.4,1155.6,0.57981148]
[1761533609146,0.15043997,1158.4,1155.7,0.57981148]
[1761533609444,0.15043997,1158.4,1155.8,0.57981148]
[1761533609649,0.15043997,1158.4,1155.5,0.162]
[1761533609846,0.15043997,1158.4,1155.6,0.57978575]
[1761533610049,0.15043997,1158.4,1155.7,0.57978575]
[1761533610250,0.15043997,1158.4,1155.8,0.57978575]
[1761533610448,0.15043997,1158.4,1155.5,0.162]
[1761533610649,0.15043997,1158.4,1155.6,0.57976291]
[1761533610852,0.15043997,1158.4,1155.7,0.57976291]
[1761533611052,0.15043997,1158.4,1155.8,0.57976291]
[1761533611251,0.15043997,1158.4,1155.5,0.162]
[1761533611451,0.15043997,1158.4,1155.6,0.57971899]
[1761533611654,0.15043997,1158.4,1155.7,0.57971899]
[1761533611951,0.15043997,1158.4,1155.8,0.57971899]
[1761533612155,0.15043997,1158.4,1155.3,1.292]
[1761533612355,0.15043997,1158.4,1155.4,0.57967859]
[1761533612652,0.15043997,1158.4,1155.5,0.57967859]
[1761533612856,0.15043997,1158.4,1155.6,0.57967859]
[1761533613156,0.15043997,1158.4,1155.7,0.57967859]
[1761533613455,0.15043997,1158.4,1155.1,0.64550154]
[1761533613656,0.15043997,1158.4,1155.2,0.57964087]
[1761533613853,0.15043997,1158.4,1155.3,0.57964087]
[1761533614052,0.15043997,1158.4,1155.4,0.57964087]
[1761533614251,0.15043997,1158.4,1155.5,0.57964087]
[1761533614552,0.15043997,1158.4,1155.6,0.73464087]
[1761533614756,0.15043997,1158.4,1155.7,0.57964087]
[1761533614954,0.15043997,1158.4,1155.6,0.155]
[1761533615152,0.15043997,1158.4,1155.7,0.57960591]
[1761533615357,0.15043997,1158.4,1155.6,0.155]
[1761533615556,0.15043997,1158.4,1155.7,0.57957122]
[1761533615753,0.15043997,1158.4,1155.8,0.57958719]
[1761533615953,0.15043997,1158.4,1155.6,0.155]
[1761533616157,0.15043997,1158.4,1155.7,0.57957658]
[1761533616455,0.15043997,1158.4,1155.6,0.155]
[1761533616653,0.15043997,1158.4,1155.7,0.57953904]
[1761533616854,0.15043997,1158.4,1155.8,1.249]
[1761533620258,2.1448393,1158.2,1155.8,1.249]
[1761533621261,2.1448393,1158.1,1155.8,1.249]
[1761533622461,2.1448393,1157.6,1155.8,1.249]
[1761533624961,3.002775,1158.2,1155.8,1.249]
[1761533624962,2.1448393,1157.7,1155.8,1.249]